fUSD/lending_fUSD_20251231
["ID","MTS","AMOUNT","RATE_DAILY","PERIOD"]
[400172574,1767168641648,-165.76518466,0.00015973,2]
[400172576,1767168641657,-500.0,0.00015973,2]
[400172578,1767168641667,-500.0,0.00015973,2]
[400172580,1767168641677,-162.84279447,0.00015973,2]
[400172582,1767168641687,-549.89268014,0.00015973,2]
[400172584,1767168641696,-500.0,0.00015973,2]
[400172586,1767168641706,-501.18328546,0.00015973,2]
[400172588,1767168641715,-165.68200422,0.00015973,2]
[400172590,1767168641725,-501.25756972,0.00015973,2]
[400172592,1767168641735,-536.86230832,0.00015973,2]
[400172594,1767168641744,-500.0,0.00015973,2]
[400172596,1767168641753,-501.07793065,0.00015973,2]
[400172598,1767168641763,-500.0,0.00015973,2]
[400172600,1767168641774,-500.0,0.00015973,2]
[400172602,1767168641784,-502.19634607,0.00015973,2]
[400172604,1767168641793,-500.0,0.00015973,2]
[400172606,1767168641803,-500.64514775,0.00015973,2]
[400172609,1767168641813,-502.0707263,0.00015973,2]
[400172611,1767168641823,-500.84919333,0.00015973,2]
[400172613,1767168641832,-500.0,0.00015973,2]
[400172615,1767168641842,-500.46250375,0.00015973,2]
[400172617,1767168641852,-201.77,0.00015973,2]
[400172619,1767168641862,-380.4068277,0.00015996,2]
[400172621,1767168641871,-671.5155217,0.00015997,2]
[400172623,1767168641881,-91998.22036374,0.00016,4]
[400172625,1767168641891,-65709.18018473,0.00016,4]
[400172627,1767168641902,-150.0,0.00016,2]
[400172629,1767168641912,-2300.0,0.00016,2]
[400172631,1767168641921,-13059.05885221,0.0001603,2]
[400172633,1767168641931,-1000.0,0.00016039,2]
[400172635,1767168641941,-168.0,0.00016079,2]
[400172637,1767168641951,-336.0,0.00016085,2]
[400172639,1767168641961,-4486.89,0.00016116,2]
[400172641,1767168641971,-250.0,0.00016193,2]
[400172643,1767168641981,-336.0,0.00016274,2]
[400172645,1767168641990,-176.88751953,0.00016338,2]
[400172647,1767168642000,-168.0,0.00016351,2]
[400172649,1767168642010,-166.99,0.00016412,2]
[400172651,1767168642020,-500.0,0.00016437,2]
[400172654,1767168642030,-500.0,0.00016437,2]
[400172656,1767168642039,-500.0,0.00016437,2]
[400172658,1767168642049,-500.0,0.00016437,2]
[400172660,1767168642059,-168.0,0.00016438,2]
[400172662,1767168642069,-1136.14575916,0.00016438,2]
[400172664,1767168642081,-1136.14575916,0.00016438,2]
[400172666,1767168642090,-1136.14575916,0.00016438,2]
[400172668,1767168642100,-1136.14575916,0.00016438,2]
[400172670,1767168642110,-1136.14575916,0.00016438,2]
[400172672,1767168642119,-1136.14575916,0.00016438,2]
[400172674,1767168642129,-1136.14575916,0.00016438,2]
[400172676,1767168642138,-1136.14575916,0.00016438,2]
[400172678,1767168642148,-1136.14575916,0.00016438,2]
[400172680,1767168642158,-1136.14575916,0.00016438,2]
[400172682,1767168642167,-1136.14575916,0.00016438,2]
[400172684,1767168642177,-1136.14575916,0.00016438,2]
[400172686,1767168642186,-1136.14575916,0.00016438,2]
[400172688,1767168642196,-1136.14575916,0.00016438,2]
[400172690,1767168642206,-1136.14575916,0.00016438,2]
[400172692,1767168642216,-1136.14575916,0.00016438,2]
[400172694,1767168642226,-1136.14575916,0.00016438,2]
[400172696,1767168642235,-1136.14575916,0.00016438,2]
[400172698,1767168642245,-1136.14575916,0.00016438,2]
[400172700,1767168642254,-1136.14575916,0.00016438,2]
[400172702,1767168642264,-1136.14575916,0.00016438,2]
[400172704,1767168642273,-1136.14575916,0.00016438,2]
[400172706,1767168642286,-1136.14575916,0.00016438,2]
[400172708,1767168642296,-1136.14575916,0.00016438,2]
[400172710,1767168642305,-1136.14575916,0.00016438,2]
[400172712,1767168642315,-1136.14575916,0.00016438,2]
[400172714,1767168642325,-1136.14575916,0.00016438,2]
[400172716,1767168642335,-1136.14575916,0.00016438,2]
[400172718,1767168642344,-1136.14575916,0.00016438,2]
[400172720,1767168642354,-1136.14575916,0.00016438,2]
[400172722,1767168642363,-1136.14575916,0.00016438,2]
[400172724,1767168642373,-1136.14575916,0.00016438,2]
[400172726,1767168642383,-1136.14575916,0.00016438,2]
[400172728,1767168642392,-1136.14575916,0.00016438,2]
[400172730,1767168642402,-1136.14575916,0.00016438,2]
[400172732,1767168642411,-1136.14575916,0.00016438,2]
[400172734,1767168642421,-1136.14575916,0.00016438,2]
[400172736,1767168642431,-1136.14575916,0.00016438,2]
[400172738,1767168642441,-1136.14575916,0.00016438,2]
[400172740,1767168642451,-1136.14575916,0.00016438,2]
[400172742,1767168642461,-1136.14575916,0.00016438,2]
[400172745,1767168642471,-1136.14575916,0.00016438,2]
[400172747,1767168642481,-1136.14575916,0.00016438,2]
[400172749,1767168642490,-1136.14575916,0.00016438,2]
[400172751,1767168642500,-1136.14575916,0.00016438,2]
[400172753,1767168642510,-1136.14575916,0.00016438,2]
[400172754,1767168642519,-1136.14575916,0.00016438,2]
[400172756,1767168642529,-1136.14575916,0.00016438,2]
[400172759,1767168642539,-1136.14575916,0.00016438,2]
[400172761,1767168642549,-1136.14575916,0.00016438,2]
[400172763,1767168642560,-1127.40617639,0.00016438,2]
[400172765,1767168642570,-1127.40617639,0.00016438,2]
[400172767,1767168642579,-1127.40617639,0.00016438,2]
[400172769,1767168642589,-1127.40617639,0.00016438,2]
[400172771,1767168642599,-1127.40617639,0.00016438,2]
[400172773,1767168642608,-1127.40617639,0.00016438,2]
[400172775,1767168642618,-1127.40617639,0.00016438,2]
[400172777,1767168642627,-1127.40617639,0.00016438,2]
[400172779,1767168642638,-1127.40617639,0.00016438,2]
[400172781,1767168642649,-1127.40617639,0.00016438,2]
[400172783,1767168642658,-1127.40617639,0.00016438,2]
[400172785,1767168642669,-1127.40617639,0.00016438,2]
[400172787,1767168642679,-1127.40617639,0.00016438,2]
[400172789,1767168642689,-1127.40617639,0.00016438,2]
[400172791,1767168642698,-1127.40617639,0.00016438,2]
[400172793,1767168642707,-1127.40617639,0.00016438,2]
[400172795,1767168642717,-1127.40617639,0.00016438,2]
[400172797,1767168642727,-1127.40617639,0.00016438,2]
[400172799,1767168642737,-1127.40617639,0.00016438,2]
[400172801,1767168642746,-1127.40617639,0.00016438,2]
[400172803,1767168642756,-1127.40617639,0.00016438,2]
[400172805,1767168642765,-1127.40617639,0.00016438,2]
[400172807,1767168642775,-1127.40617639,0.00016438,2]
[400172809,1767168642784,-1127.40617639,0.00016438,2]
[400172811,1767168642794,-1127.40617639,0.00016438,2]
[400172813,1767168642804,-1127.40617639,0.00016438,2]
[400172815,1767168642813,-1127.40617639,0.00016438,2]
[400172817,1767168642822,-1127.40617639,0.00016438,2]
[400172819,1767168642831,-1127.40617639,0.00016438,2]
[400172821,1767168642841,-1127.40617639,0.00016438,2]
[400172823,1767168642851,-1127.40617639,0.00016438,2]
[400172825,1767168642860,-1127.40617639,0.00016438,2]
[400172827,1767168642869,-1127.40617639,0.00016438,2]
[400172829,1767168642879,-1140.82767851,0.00016438,2]
[400172831,1767168642888,-1140.82767851,0.00016438,2]
[400172834,1767168642898,-1140.82767851,0.00016438,2]
[400172836,1767168642908,-1140.82767851,0.00016438,2]
[400172838,1767168642918,-1140.82767851,0.00016438,2]
[400172840,1767168642927,-1140.82767851,0.00016438,2]
[400172843,1767168642936,-1140.8276785,0.00016438,2]
[400172845,1767168642946,-10008.68,0.00016438,2]
[400172847,1767168642955,-10316.84,0.00016438,2]
[400172849,1767168642964,-226.21,0.00016438,2]
[400172851,1767168642974,-164.67,0.0001644,2]
[400172853,1767168642983,-164.67,0.0001644,2]
[400172855,1767168642993,-164.67,0.0001644,2]
[400172857,1767168643002,-196.68,0.00016457,2]
[400172859,1767168643011,-13059.05885221,0.00016465,2]
[400172861,1767168643021,-501.59465495,0.00016521,2]
[400172863,1767168643031,-1000.0,0.00016521,2]
[400172865,1767168643040,-1000.0,0.00016521,2]
[400172867,1767168643050,-998.98924961,0.00016521,2]
[400172869,1767168643059,-503.35008282,0.00016521,2]
[400172871,1767168643069,-505.32038766,0.00016521,2]
[400172873,1767168643078,-1000.0,0.00016521,2]
[400172875,1767168643087,-893.71970233,0.00016521,2]
[400172877,1767168643096,-500.73461727,0.00016521,2]
[400172879,1767168643106,-176.88751952,0.00016619,2]
[400172881,1767168643115,-736.0,0.00016708,2]
[400172883,1767168643125,-168.0,0.00016755,2]
[400172885,1767168643134,-168.0,0.00016884,2]
[400172887,1767168643143,-176.88751952,0.000169,2]
[400172889,1767168643152,-1140.0480697,0.000169,2]
[400172891,1767168643162,-2483.10960111,0.000169,2]
[400172893,1767168643172,-341.34054317,0.000169,2]
[400172895,1767168643181,-164.67,0.00016963,2]
[400172897,1767168643190,-500.0,0.00016973,2]
[400172899,1767168643199,-500.0,0.00016973,2]
[400172901,1767168643209,-500.0,0.00016973,2]
[400172903,1767168643220,-162.29676587,0.00016973,2]
[400172905,1767168643229,-500.0,0.00016973,2]
[400172907,1767168643239,-162.62949941,0.00016973,2]
[400172909,1767168643249,-500.0,0.00016973,2]
[400172911,1767168643260,-500.0,0.00016973,2]
[400172913,1767168643269,-500.0,0.00016973,2]
[400172915,1767168643278,-500.0,0.00016973,2]
[400172917,1767168643291,-500.0,0.00016973,2]
[400172919,1767168643300,-500.0,0.00016973,2]
[400172922,1767168643309,-500.0,0.00016973,2]
[400172924,1767168643320,-500.0,0.00016973,2]
[400172926,1767168643330,-571.16127303,0.00016973,2]
[400172928,1767168643339,-500.0,0.00016973,2]
[400172930,1767168643348,-500.0,0.00016973,2]
[400172932,1767168643358,-162.50883671,0.00016973,2]
[400172934,1767168643367,-500.0,0.00016973,2]
[400172936,1767168643377,-500.0,0.00016973,2]
[400172938,1767168643386,-550.00207661,0.00016973,2]
[400172940,1767168643396,-160.43167139,0.00016973,2]
[400172942,1767168643406,-160.43464258,0.00016973,2]
[400172944,1767168643415,-160.40025967,0.00016973,2]
[400172946,1767168643425,-150.4025269,0.00016973,2]
[400172948,1767168643435,-160.40696499,0.00016973,2]
[400172950,1767168643445,-160.4337152,0.00016973,2]
[400172952,1767168643455,-160.40600151,0.00016973,2]
[400172954,1767168643465,-500.0,0.00016973,2]
[400172956,1767168643475,-500.0,0.00016973,2]
[400172958,1767168643485,-160.43301019,0.00016973,2]
[400172960,1767168643494,-160.42561905,0.00016973,2]
[400172962,1767168643504,-150.1570918,0.00016973,2]
[400172964,1767168643514,-177.93864097,0.00016973,2]
[400172966,1767168643523,-453.14856339,0.00016973,2]
[400172968,1767168643533,-500.60403875,0.00016973,2]
[400172970,1767168643542,-500.0,0.00016973,2]
[400172972,1767168643552,-500.0,0.00016973,2]
[400172974,1767168643562,-519.646537,0.00016973,2]
[400172976,1767168643571,-501.35455747,0.00016973,2]
[400172978,1767168643582,-500.0,0.00016973,2]
[400172980,1767168643592,-556.81874578,0.00016973,2]
[400172983,1767168643601,-500.0,0.00016973,2]
[400172985,1767168643611,-500.0,0.00016973,2]
[400172987,1767168643621,-500.0,0.00016973,2]
[400172989,1767168643631,-427.40368537,0.00016973,2]
[400172991,1767168643642,-500.0,0.00016973,2]
[400172993,1767168643652,-500.0,0.00016973,2]
[400172995,1767168643661,-501.00189818,0.00016973,2]
[400172997,1767168643671,-500.0,0.00016973,2]
[400172999,1767168643680,-500.0,0.00016973,2]
[400173001,1767168643690,-500.0,0.00016973,2]
[400173003,1767168643698,-500.0,0.00016973,2]
[400173005,1767168643709,-517.17751083,0.00016973,2]
[400173007,1767168643719,-207.79365149,0.00016973,2]
[400173009,1767168643729,-500.0,0.00016973,2]
[400173011,1767168643738,-500.0,0.00016973,2]
[400173013,1767168643748,-500.0,0.00016973,2]
[400173015,1767168643758,-220.61613602,0.00016973,2]
[400173017,1767168643767,-167.17790449,0.00016973,2]
[400173019,1767168643777,-396.18408407,0.00016973,2]
[400173022,1767168643788,-500.0,0.00016973,2]
[400173024,1767168643797,-500.0,0.00016973,2]
[400173026,1767168643807,-161.33309619,0.00016973,2]
[400173027,1767168643816,-500.0,0.00016973,2]
[400173029,1767168643825,-500.0,0.00016973,2]
[400173031,1767168643835,-501.7651244,0.00016973,2]
[400173033,1767168643844,-500.0,0.00016973,2]
[400173035,1767168643854,-469.2844286,0.00016973,2]
[400173037,1767168643863,-506.98216206,0.00016973,2]
[400173039,1767168643873,-500.0,0.00016973,2]
[400173042,1767168643883,-500.0,0.00016973,2]
[400173044,1767168643892,-345.18608284,0.00016973,2]
[400173046,1767168643902,-500.0,0.00016973,2]
[400173047,1767168643913,-159.68383532,0.00016973,2]
[400173050,1767168643923,-509.92461485,0.00016973,2]
[400173052,1767168643932,-500.0,0.00016973,2]
[400173054,1767168643942,-500.0,0.00016973,2]
[400173056,1767168643952,-500.0,0.00016973,2]
[400173058,1767168643962,-500.0,0.00016973,2]
[400173060,1767168643971,-335.11797254,0.00016973,2]
[400173062,1767168643981,-500.0,0.00016973,2]
[400173064,1767168643991,-640.49953855,0.00016973,2]
[400173066,1767168644000,-500.0,0.00016973,2]
[400173068,1767168644009,-500.0,0.00016973,2]
[400173070,1767168644018,-500.0,0.00016973,2]
[400173072,1767168644029,-500.0,0.00016973,2]
[400173074,1767168644039,-523.82155928,0.00016973,2]
[400173075,1767168644049,-500.0,0.00016973,2]
[400173078,1767168644059,-500.0,0.00016973,2]
[400173093,1767168644197,-374.93803347,0.00016973,2]
[400173095,1767168644207,-500.0,0.00016973,2]
[400173097,1767168644217,-51607.83,0.00016986,2]
[400173099,1767168644227,-159.99837723,0.0001699,2]
[400173101,1767168644236,-159.99837723,0.0001699,2]
[400173103,1767168644248,-164.67,0.0001699,2]
[400173106,1767168644260,-2218.60438038,0.00016999,2]
[400173108,1767168644269,-300.0,0.00016999,2]
[400173109,1767168644279,-300.0,0.00016999,2]
[400173112,1767168644289,-670.74310067,0.00016999,2]
[400173113,1767168644298,-300.0,0.00016999,2]
[400173117,1767168644308,-300.0,0.00016999,2]
[400173120,1767168644317,-675.6926152,0.00016999,2]
[400173122,1767168644327,-300.0,0.00016999,2]
[400173124,1767168644336,-666.0,0.00016999,2]
[400173125,1767168644345,-467.19773594,0.00016999,2]
[400173126,1767168644354,-567.50706892,0.00016999,2]
[400173127,1767168644364,-150.0,0.00016999,2]
[400173128,1767168644373,-3199541.30512139,0.00017,2]
[400173145,1767168644611,187.204038,0.00043178,50]
[400173148,1767168644624,-361484.56453393,0.00017,2]
[400173157,1767168644705,289.309646,0.00043178,50]
[400173189,1767168645006,-1.7e-07,0.00017,2]
[400173191,1767168645018,-6251.40605885,0.00017,2]
[400173200,1767168645090,187.204038,0.00043178,50]
[400173210,1767168645178,187.204038,0.00043178,50]
[400173220,1767168645265,187.204038,0.00043178,50]
[400173229,1767168645341,187.204038,0.00043178,50]
[400173239,1767168645430,187.204038,0.00043178,50]
[400173250,1767168645529,187.204038,0.00043178,50]
[400173261,1767168645630,187.204029,0.00043178,50]
[400173266,1767168645662,-306.23900044,0.0001541,2]
[400173282,1767168645810,-258.76099956,0.0001541,2]
[400173284,1767168645820,-151.0,0.00015928,2]
[400173287,1767168645829,-151.0,0.00015928,2]
[400173289,1767168645838,-220.76404125,0.000169,2]
[400173291,1767168645848,-10125.30448688,0.000169,2]
[400173294,1767168645862,-999.00544417,0.000169,2]
[400173296,1767168645873,-897.93027432,0.000169,2]
[400173327,1767168646159,-254.08020516,0.000169,2]
[400173342,1767168646302,-782.73844168,0.000169,2]
[400173345,1767168646312,-217.26155832,0.00017,2]
[400173408,1767168646932,151.0,0.00043178,50]
[400173429,1767168647229,151.0,0.00043178,50]
[400173462,1767168647548,151.0,0.00043178,50]
[400173496,1767168647875,151.0,0.00043178,50]
[400173561,1767168648504,151.0,0.00043178,50]
[400173594,1767168648810,151.0,0.00043178,50]
[400173620,1767168649067,151.0,0.00043178,50]
[400173621,1767168649365,151.0,0.00043178,50]
[400173622,1767168649697,151.0,0.00043178,50]
[400173624,1767168650085,151.0,0.00043178,50]
[400173625,1767168650355,151.0,0.00043178,50]
[400173626,1767168650648,151.0,0.00043178,50]
[400173627,1767168650938,291.584406,0.00043178,50]
[400173628,1767168651565,151.0,0.00043178,50]
[400173629,1767168651871,151.0,0.00043178,50]
[400173630,1767168652163,195.387728,0.00043178,50]
[400173631,1767168652238,151.0,0.00043178,50]
[400173632,1767168652475,151.0,0.00043178,50]
[400173633,1767168653061,151.0,0.00043178,50]
[400173634,1767168653140,291.245981,0.00043178,50]
[400173635,1767168663271,500.0,0.00043178,120]
[400173636,1767168672312,151.0,0.00043178,50]
[400173637,1767168672650,151.0,0.00043178,50]
[400173638,1767168672948,151.0,0.00043178,50]
[400173639,1767168673257,500.0,0.00043178,50]
[400173640,1767168673355,151.0,0.00043178,50]
[400173641,1767168673580,151.0,0.00043178,50]
[400173642,1767168673891,151.0,0.00043178,50]
[400173643,1767168674194,151.0,0.00043178,50]
[400173646,1767168687971,151.0,0.00043205,50]
[400173647,1767168688232,244.094557,0.00043205,50]
[400173648,1767168689454,241.60116,0.00043205,50]
[400173649,1767168690956,151.0,0.00043205,50]
[400173650,1767168691257,151.0,0.00043205,50]
[400173651,1767168691561,151.0,0.00043205,50]
[400173652,1767168692860,257.020505,0.00043205,50]
[400173653,1767168693169,257.020505,0.00043205,50]
[400173654,1767168693469,257.020505,0.00043205,50]
[400173655,1767168693778,257.020505,0.00043205,50]
[400173656,1767168693854,158.361776,0.00043205,50]
[400173657,1767168694067,257.020505,0.00043205,50]
[400173658,1767168694354,257.020505,0.00043205,50]
[400173659,1767168694657,257.020505,0.00043205,50]
[400173660,1767168694949,257.020505,0.00043205,50]
[400173661,1767168695206,151.0,0.00043205,50]
[400173662,1767168695292,257.020505,0.00043205,50]
[400173663,1767168695518,151.0,0.00043205,50]
[400173664,1767168695616,257.020505,0.00043205,50]
[400173665,1767168695828,257.020505,0.00043205,50]
[400173666,1767168695911,151.0,0.00043205,50]
[400173667,1767168696129,257.020505,0.00043205,50]
[400173668,1767168696212,151.0,0.00043205,50]
[400173669,1767168696424,257.020505,0.00043205,50]
[400173670,1767168696501,151.0,0.00043205,50]
[400173671,1767168696735,257.020505,0.00043205,50]
[400173672,1767168696809,151.0,0.00043205,50]
[400173673,1767168696883,194.322048,0.00043205,50]
[400173674,1767168697027,257.020505,0.00043205,50]
[400173675,1767168697101,151.0,0.00043205,50]
[400173676,1767168697670,159.800356,0.00043205,50]
[400173677,1767168697746,257.020505,0.00043205,50]
[400173678,1767168697831,159.800356,0.00043205,50]
[400173679,1767168697924,151.0,0.00043205,50]
[400173680,1767168698002,257.020505,0.00043205,50]
[400173681,1767168698077,159.800356,0.00043205,50]
[400173682,1767168698154,181.76985,0.00043205,50]
[400173683,1767168698228,257.020505,0.00043205,50]
[400173684,1767168698301,159.800356,0.00043205,50]
[400173685,1767168698380,257.020505,0.00043205,50]
[400173686,1767168698459,159.800356,0.00043205,50]
[400173687,1767168698544,257.020505,0.00043205,50]
[400173688,1767168699165,159.800356,0.00043205,50]
[400173689,1767168699631,159.800356,0.00043205,50]
[400173690,1767168699898,159.800356,0.00043205,50]
[400173691,1767168700175,159.800356,0.00043205,50]
[400173692,1767168700479,159.800356,0.00043205,50]
[400173693,1767168700765,159.800356,0.00043205,50]
[400173694,1767168701051,159.800356,0.00043205,50]
[400173695,1767168701331,159.800356,0.00043205,50]
[400173696,1767168701631,159.800356,0.00043205,50]
[400173697,1767168701919,159.800356,0.00043205,50]
[400173698,1767168702215,159.800356,0.00043205,50]
[400173699,1767168702249,-803.44715269,0.00012985,2]
[400173700,1767168702502,159.800356,0.00043205,50]
[400173701,1767168702784,159.800356,0.00043205,50]
[400173702,1767168703073,159.800356,0.00043205,50]
[400173703,1767168703380,159.800349,0.00043205,50]
[400173704,1767168704714,151.0,0.00043205,50]
[400173705,1767168705035,155.121776,0.00043205,50]
[400173709,1767168725475,177.91505265,0.00043205,120]
[400173710,1767168727551,267.49533717,0.00043205,120]
[400173711,1767168728121,500.0,0.00043205,120]
[400173712,1767168728914,151.0,0.00043205,50]
[400173713,1767168729559,151.0,0.00043205,50]
[400173714,1767168729649,151.0,0.00043205,50]
[400173715,1767168729837,151.0,0.00043205,50]
[400173716,1767168730166,151.0,0.00043205,50]
[400173717,1767168730510,151.0,0.00043205,50]
[400173718,1767168730820,151.0,0.00043205,50]
[400173719,1767168731103,151.0,0.00043205,50]
[400173720,1767168731440,151.0,0.00043205,50]
[400173721,1767168731739,151.0,0.00043205,50]
[400173722,1767168731774,-239.69824731,0.00012985,2]
[400173723,1767168731805,-46.69091501,0.00013084,2]
[400173724,1767168732038,151.0,0.00043205,50]
[400173725,1767168732349,209.344585,0.00043205,50]
[400173726,1767168734250,-359.91913793,0.00013084,2]
[400173728,1767168747244,-198.33595259,0.00012985,2]
[400173729,1767168750310,151.0,0.00043205,50]
[400173730,1767168750627,151.0,0.00043205,50]
[400173731,1767168750665,-205.34122303,0.00012985,2]
[400173732,1767168750946,151.0,0.00043205,50]
[400173733,1767168751245,151.0,0.00043205,50]
[400173734,1767168751844,151.0,0.00043205,50]
[400173735,1767168752881,-172.16790242,0.00012985,2]
[400173736,1767168752955,151.0,0.00043205,50]
[400173737,1767168753221,151.0,0.00043205,50]
[400173738,1767168753507,151.0,0.00043205,50]
[400173739,1767168753822,151.0,0.00043205,50]
[400173740,1767168754279,151.0,0.00043205,50]
[400173741,1767168754316,-263.72438278,0.00012984,2]
[400173742,1767168754553,151.0,0.00043205,50]
[400173743,1767168755047,151.0,0.00043205,50]
[400173744,1767168755271,155.540164,0.00043205,50]
[400173745,1767168756795,-147.06449749,0.00012984,2]
[400173746,1767168756823,-128.29266057,0.00012984,2]
[400173747,1767168759353,-231.86058071,0.00012984,2]
[400173748,1767168762631,-139.84675872,0.00012984,2]
[400173749,1767168762660,-110.15324128,0.00012984,2]
[400173750,1767168763264,203.02783823,0.00043205,120]
[400173751,1767168765153,151.0,0.00043205,50]
[400173752,1767168765491,151.0,0.00043205,50]
[400173753,1767168765793,151.0,0.00043205,50]
[400173754,1767168766102,151.0,0.00043205,50]
[400173755,1767168766185,-211.32,0.00012984,2]
[400173756,1767168766387,151.0,0.00043205,50]
[400173757,1767168766671,151.0,0.00043205,50]
[400173758,1767168766967,151.0,0.00043205,50]
[400173759,1767168767260,151.0,0.00043205,50]
[400173761,1767168767576,151.0,0.00043205,50]
[400173763,1767168767880,151.0,0.00043205,50]
[400173766,1767168768238,151.0,0.00043205,50]
[400173768,1767168768535,194.237267,0.00043205,50]
[400173769,1767168768694,-175.09692665,0.00012984,2]
[400173770,1767168770105,-3.42983207,0.00012984,2]
[400173771,1767168770138,-349.85972081,0.00012984,2]
[400173772,1767168774581,-150.14027919,0.00012984,2]
[400173773,1767168774610,-242.45250174,0.00012984,2]
[400173774,1767168775188,151.0,0.00043205,50]
[400173775,1767168775502,151.0,0.00043205,50]
[400173776,1767168775828,151.0,0.00043205,50]
[400173777,1767168776158,281.64759,0.00043205,50]
[400173778,1767168778311,-193.88020266,0.00012984,2]
[400173779,1767168780337,-63.6672956,0.00012984,2]
[400173780,1767168780367,-102.99270457,0.00012984,2]
[400173781,1767168782285,-166.0,0.00012983,2]
[400173783,1767168784517,-134.0,0.00012983,2]
[400173784,1767168784549,-47.15979734,0.00012984,2]
[400173785,1767168787065,-260.00560258,0.00012984,2]
[400173786,1767168787274,271.410683,0.00043205,50]
[400173787,1767168789132,-89.84189551,0.00012984,2]
[400173788,1767168789163,-111.5774878,0.00012984,2]
[400173789,1767168789243,500.0,0.00043205,120]
[400173790,1767168789987,500.0,0.00043205,120]
[400173791,1767168790175,151.0,0.00043205,50]
[400173792,1767168790478,151.0,0.00043205,50]
[400173793,1767168790772,167.746703,0.00043205,50]
[400173794,1767168791313,-296.48,0.00012984,2]
[400173795,1767168791477,151.0,0.00043205,50]
[400173796,1767168791762,151.0,0.00043205,50]
[400173797,1767168792117,151.0,0.00043205,50]
[400173798,1767168792422,201.554892,0.00043205,50]
[400173800,1767168794306,-91.9425122,0.00012984,2]
[400173801,1767168794338,-74.7174878,0.00012984,2]
[400173802,1767168798619,151.0,0.00043205,50]
[400173803,1767168798946,159.847432,0.00043205,50]
[400173804,1767168802729,168.878987,0.00043205,50]
[400173805,1767168805223,151.0,0.00043205,50]
[400173806,1767168805520,181.083833,0.00043205,50]
[400173807,1767168806673,-159.94907617,0.00012984,2]
[400173808,1767168808805,-265.33343603,0.00012984,2]
[400173809,1767168808835,-7.96133762,0.00012984,2]
[400173810,1767168809477,-492.03866238,0.00012984,2]
[400173811,1767168809561,-500.0,0.00012984,2]
[400173812,1767168809653,-500.0,0.00012984,2]
[400173813,1767168809739,-233.43098745,0.00012984,2]
[400173814,1767168809820,-500.0,0.00012984,2]
[400173815,1767168809912,-500.0,0.00012984,2]
[400173816,1767168809994,-499.99999999,0.00012984,2]
[400173817,1767168810689,160.01946,0.00043205,50]
[400173818,1767168811355,-173.00309202,0.00012985,2]
[400173819,1767168812767,-8750.14848564,0.00012985,2]
[400173820,1767168812878,-10000.01,0.00012985,2]
[400173821,1767168812995,-10000.01,0.00012985,2]
[400173822,1767168813104,-10000.01,0.00012985,2]
[400173823,1767168813209,-10000.01,0.00012985,2]
[400173824,1767168814818,151.0,0.00043205,50]
[400173825,1767168815191,151.0,0.00043205,50]
[400173826,1767168815494,-10000.01,0.00012985,2]
[400173827,1767168815700,-10000.01,0.00012985,2]
[400173828,1767168815933,-10000.01,0.00012985,2]
[400173829,1767168816028,282.044959,0.00043205,50]
[400173830,1767168816203,-10000.01,0.00012985,2]
[400173831,1767168816318,282.044959,0.00043205,50]
[400173832,1767168816486,-10000.01,0.00012985,2]
[400173833,1767168816736,-10000.01,0.00012985,2]
[400173834,1767168816823,282.044959,0.00043205,50]
[400173835,1767168816924,-10000.01,0.00012985,2]
[400173836,1767168817009,282.044959,0.00043205,50]